bitfinex-derivatives/quotes_SOLF0:USTF0_20241029
["timestamp","ask_amount","ask_price","bid_price","bid_amount"]
[1730206414122,2.7851,179.61,179.59,5.99161179]
[1730206414429,4.24,179.62,179.59,5.99161179]
[1730206414624,4.24,179.63,179.6,5.99161179]
[1730206414821,4.24,179.63,179.61,5.99161179]
[1730206415220,7.64815843,179.67,179.61,5.99161179]
[1730206415418,7.64815843,179.7,179.66,5.99161179]
[1730206415629,4.24,179.7,179.66,5.99161179]
[1730206417425,7.0237,179.7,179.66,8.77571179]
[1730206418422,2.7837,179.7,179.66,8.77571179]
[1730206420024,7.24261179,179.72,179.66,5.99161179]
[1730206420237,2.7837,179.7,179.66,5.99161179]
[1730206423024,2.7837,179.7,179.66,8.77581179]
[1730206427540,2.7842,179.67,179.64,5.99161179]
[1730206433038,2.7842,179.67,179.64,8.77611179]
[1730206433446,2.7843,179.66,179.58,3.6625]
[1730206433741,2.7843,179.66,179.64,5.99161179]
[1730206434840,2.7844,179.65,179.58,3.6625]
[1730206435045,5.99161179,179.68,179.63,5.99161179]
[1730206435342,14.46585843,179.72,179.63,8.77621179]
[1730206435343,5.99161179,179.69,179.63,8.77621179]
[1730206435538,2.7843,179.66,179.64,5.99161179]
[1730206436142,2.784,179.68,179.65,2.7843]
[1730206436341,5.99161179,179.69,179.65,2.7843]
[1730206436541,5.99161179,179.69,179.64,5.99161179]
[1730206437045,2.7841,179.67,179.64,8.77601179]
[1730206440743,2.7844,179.66,179.62,2.7847]
[1730206440945,2.7844,179.66,179.63,5.99161179]
[1730206442247,2.7844,179.66,179.64,2.7845]
[1730206443438,2.784,179.68,179.65,8.77591179]
[1730206443844,5.99161179,179.7,179.65,8.77591179]
[1730206444753,5.99161179,179.68,179.65,8.77591179]
[1730206445548,5.99161179,179.7,179.65,8.77591179]
[1730206445736,1.251,179.72,179.66,8.77571179]
[1730206445942,5.99161179,179.71,179.66,5.99161179]
[1730206446642,7.64815843,179.74,179.69,5.99161179]
[1730206446844,7.64815843,179.75,179.71,2.7834]
[1730206447056,7.64815843,179.75,179.7,5.99161179]
[1730206447057,5.99161179,179.74,179.59,5.5706]
[1730206447447,2.7832,179.73,179.69,2.7837]
[1730206447950,2.7832,179.73,179.66,2.7842]
[1730206447951,8.77541179,179.7,179.66,2.7842]
[1730206448147,5.99161179,179.7,179.66,2.7842]
[1730206448551,8.77531179,179.7,179.66,2.7842]
[1730206448941,5.99161179,179.7,179.65,2.7843]
[1730206449143,2.7838,179.69,179.65,2.7843]
[1730206451853,13.63977022,179.7,179.65,2.7843]
[1730206452052,4.12583502,179.69,179.64,5.99161179]
[1730206452253,4.12583502,179.69,179.62,5.99161179]
[1730206452254,5.99161179,179.68,179.62,5.99161179]
[1730206452960,5.99161179,179.65,179.58,3.6625]
[1730206453260,2.7848,179.63,179.58,9.65411179]
[1730206453449,5.99161179,179.64,179.58,12.43951179]
[1730206453761,2.7849,179.62,179.58,9.65411179]
[1730206454152,8.77651179,179.62,179.58,12.43951179]
[1730206454352,2.7852,179.6,179.58,1.2151]
[1730206454659,7.64815843,179.67,179.56,8.77731179]
[1730206454660,5.99161179,179.61,179.56,8.77731179]
[1730206455055,2.7854,179.59,179.56,8.77731179]
[1730206455252,2.7854,179.59,179.53,2.4501]
[1730206455253,5.99161179,179.61,179.53,2.4501]
[1730206455451,1.2299,179.66,179.53,2.4501]
[1730206455452,5.99161179,179.59,179.53,8.44171179]
[1730206455652,2.7855,179.58,179.53,7.24121179]
[1730206455862,2.7855,179.58,179.54,2.786]
[1730206456267,2.7857,179.57,179.54,2.786]
[1730206457958,2.7857,179.57,179.53,7.24121179]
[1730206458160,2.7857,179.57,179.53,10.02741179]
[1730206458359,2.7857,179.57,179.53,7.24121179]
[1730206459356,2.7857,179.57,179.54,2.7861]
[1730206459957,2.7857,179.57,179.54,8.77771179]
[1730206461252,2.7855,179.58,179.55,2.7859]
[1730206461453,5.99161179,179.59,179.53,1.2496]
[1730206461660,5.99161179,179.59,179.53,7.24121179]
[1730206462356,2.7857,179.57,179.54,2.786]
[1730206468364,6.8296,179.64,179.53,1.2496]
[1730206468557,5.99161179,179.56,179.53,1.2496]
[1730206469057,5.99161179,179.56,179.54,2.7861]
[1730206469967,2.7857,179.57,179.54,2.7861]
[1730206470167,5.99161179,179.59,179.53,7.24121179]
[1730206470367,2.7856,179.58,179.55,2.7858]
[1730206470567,5.99161179,179.59,179.55,2.7858]
[1730206470960,2.7855,179.58,179.55,2.7858]
[1730206472463,5.99161179,179.56,179.39,5.5768]
[1730206472656,1.2604,179.64,179.46,7.18011179]
[1730206472657,5.99161179,179.52,179.46,7.18011179]
[1730206472969,5.99161179,179.53,179.47,5.99161179]
[1730206473360,8.77791179,179.53,179.5,2.7867]
[1730206473559,5.99161179,179.57,179.5,5.99161179]
[1730206473765,5.99161179,179.58,179.52,5.99161179]
[1730206473963,1.2326,179.63,179.54,5.99161179]
[1730206474159,5.99161179,179.6,179.47,2.5152]
[1730206474364,1.2326,179.63,179.54,5.99161179]
[1730206474576,2.7854,179.59,179.55,8.77751179]
[1730206475168,5.99161179,179.58,179.55,2.7859]
[1730206475368,2.7852,179.6,179.56,2.7858]
[1730206475564,5.99161179,179.58,179.53,5.99161179]
[1730206476057,1.2604,179.64,179.47,2.5152]
[1730206476257,5.99161179,179.53,179.47,2.5152]
[1730206476465,5.99161179,179.53,179.47,8.50681179]
[1730206476673,2.7864,179.52,179.48,2.7869]
[1730206476967,2.7864,179.52,179.47,8.50681179]
[1730206477564,2.7864,179.52,179.49,5.99161179]
[1730206478268,2.7864,179.52,179.49,8.77851179]
[1730206478466,2.7864,179.52,179.49,2.7869]
[1730206481871,9.3690105,179.59,179.47,11.8842105]
[1730206482069,2.5197,179.6,179.51,2.7865]
[1730206482269,1.2603,179.6,179.53,9.3690105]
[1730206482463,2.7853,179.59,179.55,2.7858]
[1730206482664,1.2603,179.6,179.55,2.7858]
[1730206483174,1.2603,179.6,179.53,9.3690105]
[1730206483361,2.7855,179.58,179.54,2.7861]
[1730206483560,1.2603,179.6,179.53,9.3690105]
[1730206483762,2.7852,179.6,179.56,2.7858]
[1730206484668,2.7851,179.61,179.55,2.7859]
[1730206484882,10.6294105,179.64,179.55,2.7859]
[1730206485261,2.7853,179.6,179.55,2.7859]
[1730206485469,10.6294105,179.64,179.55,2.7859]
[1730206486271,2.7849,179.62,179.58,2.7854]
[1730206486675,1.2962,179.65,179.55,9.3690105]
[1730206487666,2.7849,179.62,179.57,2.7856]
[1730206487867,1.2962,179.65,179.55,9.3690105]
[1730206489068,2.7849,179.62,179.57,2.7856]
[1730206489478,1.2962,179.65,179.57,2.7856]
[1730206490269,2.7848,179.63,179.57,2.7856]
[1730206490467,1.2962,179.65,179.57,2.7856]
[1730206491376,1.2962,179.65,179.57,9.3690105]
[1730206491577,1.2962,179.65,179.59,2.7852]
[1730206492278,2.7848,179.63,179.59,2.7852]
[1730206492580,1.2962,179.65,179.57,9.3690105]
[1730206492774,2.7847,179.63,179.58,2.7855]
[1730206493884,1.2962,179.65,179.58,2.7855]
[1730206494083,2.7853,179.59,179.55,2.7859]
[1730206495776,1.2962,179.65,179.54,9.3690105]
[1730206495975,1.2962,179.65,179.57,9.3690105]
[1730206496185,9.68405128,179.68,179.59,9.3690105]
[1730206496392,8.93405843,179.69,179.59,9.3690105]
[1730206496692,4.11687598,179.68,179.6,2.785]
[1730206497189,8.93405843,179.69,179.6,2.785]
[1730206497190,2.7847,179.63,179.6,2.785]
[1730206497386,2.7847,179.63,179.59,9.3690105]
[1730206497588,2.7847,179.63,179.59,12.1543105]
[1730206501199,8.93405843,179.69,179.59,9.3690105]
[1730206501392,4.11368096,179.68,179.59,9.3690105]
[1730206501794,4.11368096,179.68,179.6,2.785]
[1730206501992,1.2859,179.69,179.6,2.785]
[1730206502704,7.2786151,179.69,179.63,5.9927151]
[1730206503500,2.7847,179.64,179.63,5.9927151]
[1730206507991,4.05648838,179.71,179.63,5.9927151]
[1730206507992,1.2789,179.71,179.63,5.9927151]
[1730206508306,1.2789,179.71,179.68,5.9927151]
[1730206509093,128.89644926,179.75,179.7,5.9927151]
[1730206509299,4.11495484,179.74,179.71,5.9927151]
[1730206509596,7.2252151,179.76,179.71,5.9927151]
[1730206510002,1.2325,179.76,179.71,5.9927151]
[1730206510199,2.783,179.74,179.73,5.9927151]
[1730206510506,8.93685843,179.79,179.7,9.3626393]
[1730206510701,7.64815843,179.8,179.7,9.3626393]
[1730206510903,8.88065843,179.81,179.7,9.3626393]
[1730206511107,4.11183879,179.8,179.7,9.3626393]
[1730206511307,2.7828,179.76,179.71,2.7834]
[1730206511509,1.2325,179.81,179.71,2.7834]
[1730206511704,2.7827,179.76,179.72,2.7832]
[1730206512006,1.2325,179.81,179.7,9.3626393]
[1730206512204,2.4765,179.81,179.7,9.3626393]
[1730206512708,2.7827,179.76,179.71,2.7833]
[1730206514610,2.7828,179.75,179.71,2.7833]
[1730206515003,2.4765,179.81,179.7,9.3626393]
[1730206515204,2.7828,179.76,179.72,2.7832]
[1730206515603,2.4765,179.81,179.7,9.3626393]
[1730206515803,2.783,179.75,179.71,2.7834]
[1730206516407,2.7824,179.78,179.73,2.7831]
[1730206516611,2.7824,179.78,179.7,9.3626393]
[1730206516612,2.4765,179.81,179.7,9.3626393]
[1730206517104,2.4765,179.81,179.72,2.7833]
[1730206517814,9.3626393,179.8,179.68,9.3626393]
[1730206518408,2.783,179.75,179.7,2.7835]
[1730206519808,2.783,179.74,179.7,2.7835]
[1730206520011,9.3626393,179.8,179.7,2.7835]
[1730206520711,2.783,179.74,179.7,2.7835]
[1730206521411,2.4765,179.81,179.63,9.3626393]
[1730206521412,5.5645,179.79,179.63,9.3626393]
[1730206521713,9.3626393,179.72,179.62,79.86817971]
[1730206522410,2.7842,179.67,179.63,2.7847]
[1730206523910,2.7837,179.7,179.63,2.7847]
[1730206524117,9.3626393,179.72,179.63,2.7847]
[1730206524508,2.7842,179.67,179.63,2.7847]
[1730206526017,9.3626393,179.69,179.61,2.4839]
[1730206527315,9.3626393,179.69,179.61,1.2794]
[1730206528019,2.7846,179.64,179.61,1.2794]
[1730206528807,9.3626393,179.69,179.61,1.2794]
[1730206529009,2.7845,179.65,179.61,4.0644]
[1730206529523,2.7845,179.65,179.61,2.785]
[1730206531310,2.7846,179.64,179.61,2.785]
[1730206531511,9.3626393,179.69,179.58,9.3626393]
[1730206531707,11.8981393,179.72,179.63,2.7847]
[1730206531911,2.7843,179.66,179.6,9.3626393]
[1730206532322,2.7843,179.66,179.62,2.7847]
[1730206533232,2.7843,179.66,179.6,9.3626393]
[1730206533523,2.7843,179.66,179.63,2.7846]
[1730206534421,2.7835,179.71,179.68,2.7839]
[1730206534622,2.7835,179.71,179.69,5.98950231]
[1730206535222,8.94665843,179.78,179.6,1.2256]
[1730206535223,2.7833,179.72,179.7,5.98950231]
[1730206536113,5.98950231,179.75,179.7,5.98950231]
[1730206536316,2.7833,179.73,179.7,5.98950231]
[1730206536624,2.7833,179.73,179.69,2.7838]
[1730206538319,2.7827,179.76,179.68,9.36550903]
[1730206538520,1.2086,179.79,179.7,9.36550903]
[1730206539127,2.7827,179.76,179.72,2.7832]
[1730206539622,1.2086,179.79,179.7,9.36550903]
[1730206539623,2.7826,179.77,179.73,2.783]
[1730206539825,2.7826,179.77,179.7,9.36550903]
[1730206540320,2.7826,179.77,179.73,2.7831]
[1730206540513,2.7824,179.78,179.7,9.36550903]
[1730206540715,18.24066746,179.83,179.73,9.36550903]
[1730206540926,4.11886243,179.82,179.73,9.36550903]
[1730206541117,2.7825,179.78,179.73,9.36550903]
[1730206541420,2.7825,179.78,179.73,12.14850903]
[1730206542021,2.7825,179.77,179.73,12.14850903]
[1730206542923,2.7825,179.78,179.73,12.14850903]
[1730206543122,7.64815843,179.82,179.73,12.14850903]
[1730206543423,11.76788535,179.82,179.73,12.14850903]
[1730206544217,2.7826,179.77,179.73,12.14850903]
[1730206544620,2.7826,179.77,179.73,9.36550903]
[1730206545219,18.24066746,179.83,179.73,9.36550903]
[1730206545421,4.11930082,179.82,179.73,9.36550903]
[1730206546417,11.76745925,179.82,179.71,4.0576]
[1730206546927,2.7828,179.76,179.71,4.0576]
[1730206548631,2.7828,179.76,179.72,2.7833]
[1730206549127,2.7829,179.75,179.72,2.7833]
[1730206551731,7.64815843,179.82,179.72,2.7833]
[1730206552031,2.783,179.74,179.72,2.7833]
[1730206552731,13.21175843,179.82,179.71,1.2742]
[1730206553032,21.13142257,179.81,179.71,1.2742]
[1730206553227,4.11775511,179.8,179.71,1.2742]
[1730206553427,2.7825,179.78,179.71,1.2742]
[1730206553626,17.01366746,179.81,179.71,1.2742]
[1730206553828,4.11731383,179.8,179.71,1.2742]
[1730206554028,2.7831,179.74,179.71,1.2742]
[1730206555030,2.7829,179.75,179.71,4.0577]
[1730206555234,17.01366746,179.81,179.71,1.2742]
[1730206555429,13.21175843,179.82,179.71,1.2742]
[1730206555628,4.11776453,179.81,179.72,2.7833]
[1730206556235,2.7828,179.76,179.72,2.7833]
[1730206556441,5.99167252,179.8,179.74,5.99167252]
[1730206557244,2.7829,179.75,179.73,5.99167252]
[1730206558135,2.7829,179.75,179.72,5.99167252]
[1730206559429,2.7829,179.75,179.68,2.7838]
[1730206559430,2.7834,179.72,179.68,2.7838]
[1730206559740,5.99167252,179.73,179.68,5.99167252]
[1730206561235,2.7836,179.71,179.68,5.99167252]
[1730206563040,2.7836,179.7,179.68,5.99167252]
[1730206566050,2.7836,179.71,179.68,5.99167252]
[1730206567843,1.2398,179.8,179.7,5.99167252]
[1730206568150,5.99167252,179.75,179.68,1.2675]
[1730206568347,5.99167252,179.75,179.68,7.25917252]
[1730206568549,2.7833,179.73,179.69,2.7837]
[1730206569244,5.99167252,179.72,179.67,5.99167252]
[1730206569846,2.7837,179.7,179.67,5.99167252]
[1730206570146,5.99167252,179.72,179.67,5.99167252]
[1730206570652,2.7837,179.7,179.67,5.99167252]
[1730206571646,1.2178,179.76,179.67,5.99167252]
[1730206571855,2.7835,179.71,179.68,5.99167252]
[1730206572358,2.7834,179.72,179.7,5.99167252]
[1730206572951,2.7836,179.71,179.68,5.99167252]
[1730206573145,5.99167252,179.72,179.67,5.99167252]
[1730206575050,2.7837,179.7,179.67,5.99167252]
[1730206575848,5.99167252,179.75,179.69,5.99167252]
[1730206577546,2.7832,179.73,179.69,5.99167252]
[1730206578655,2.7832,179.73,179.69,8.77537252]
[1730206582456,5.99167252,179.77,179.71,5.99167252]
[1730206583453,2.7832,179.73,179.71,5.99167252]
[1730206585050,2.7832,179.73,179.69,8.77537252]
[1730206585256,2.7832,179.73,179.63,2.563]
[1730206585257,5.99167252,179.72,179.66,2.7842]
[1730206585455,5.99167252,179.72,179.63,2.563]
[1730206585456,5.99167252,179.69,179.63,2.563]
[1730206585753,2.7843,179.66,179.62,2.7849]
[1730206585952,2.7843,179.66,179.63,5.99167252]
[1730206587257,2.7843,179.66,179.63,8.77637252]
[1730206587648,2.7841,179.67,179.63,8.77637252]
[1730206592166,2.7838,179.69,179.64,5.99167252]
[1730206592359,11.17598908,179.74,179.66,5.99167252]
[1730206592360,5.99167252,179.72,179.66,5.99167252]
[1730206592765,2.7835,179.71,179.67,2.784]
[1730206596868,5.99167252,179.68,179.61,2.4819]
[1730206597064,5.99167252,179.68,179.62,5.99167252]
[1730206597264,5.99167252,179.71,179.65,5.99167252]
[1730206597774,2.7838,179.69,179.65,8.77597252]
[1730206597974,2.7838,179.69,179.65,5.99167252]
[1730206598174,2.7838,179.69,179.66,8.77587252]
[1730206598869,2.7836,179.71,179.67,2.784]
[1730206601272,5.99167252,179.69,179.63,5.99167252]
[1730206601474,5.99167252,179.68,179.61,2.4819]
[1730206601670,5.99167252,179.68,179.62,5.99167252]
[1730206601869,2.7842,179.67,179.63,2.7846]
[1730206602482,2.7842,179.67,179.64,2.7845]
[1730206603581,5.99167252,179.68,179.62,5.99167252]
[1730206603777,2.7843,179.66,179.62,5.99167252]
[1730206604994,2.7844,179.65,179.62,2.7848]
[1730206605986,2.7844,179.65,179.61,10.05247252]
[1730206606192,2.7844,179.65,179.61,7.26757252]
[1730206607391,2.7844,179.65,179.62,2.7848]
[1730206607597,5.99167252,179.66,179.61,1.2759]
[1730206608291,2.7845,179.65,179.61,1.2759]
[1730206608596,5.99167252,179.65,179.58,5.99167252]
[1730206608782,2.7847,179.63,179.58,5.99167252]
[1730206609193,5.99167252,179.65,179.61,2.785]
[1730206609392,2.7847,179.64,179.61,2.785]
[1730206609701,5.99167252,179.65,179.61,2.785]
[1730206609906,2.7846,179.64,179.61,2.785]
[1730206610390,5.99167252,179.65,179.58,5.99167252]
[1730206610582,2.7847,179.63,179.58,5.99167252]
[1730206610987,2.7847,179.63,179.59,2.7852]
[1730206611290,2.7849,179.62,179.59,2.7852]
[1730206614199,2.7848,179.63,179.59,2.7852]
[1730206616501,2.7848,179.63,179.6,2.7852]
[1730206620397,5.99167252,179.66,179.59,5.99167252]
[1730206620599,11.18738908,179.7,179.62,5.99167252]
[1730206620796,5.99167252,179.69,179.62,5.99167252]
[1730206621203,2.784,179.68,179.64,2.7844]
[1730206622097,2.7838,179.69,179.64,5.99167252]
[1730206622405,15.8775616,179.72,179.66,5.99167252]
[1730206622902,5.99167252,179.72,179.66,5.99167252]
[1730206623102,13.79038908,179.75,179.66,5.99167252]
[1730206623398,2.7835,179.71,179.67,2.784]
[1730206623599,5.99167252,179.72,179.67,2.784]
[1730206623808,5.99167252,179.72,179.66,5.99167252]
[1730206624203,2.7836,179.7,179.66,8.77577252]
[1730206624597,5.99167252,179.72,179.66,5.99167252]
[1730206624898,5.99167252,179.7,179.58,5.5709]
[1730206625095,5.99167252,179.68,179.57,2.5873]
[1730206625295,5.99167252,179.68,179.62,5.99167252]
[1730206625499,8.77577252,179.67,179.63,2.7847]
[1730206625693,5.99167252,179.67,179.6,5.99167252]
[1730206626402,2.7843,179.66,179.6,5.99167252]
[1730206626805,2.7843,179.66,179.62,2.7847]
[1730206627203,2.7843,179.66,179.62,5.99167252]
[1730206627409,2.7843,179.66,179.63,5.99167252]
[1730206628104,2.7843,179.66,179.63,8.77627252]
[1730206634309,2.7842,179.67,179.64,2.7845]
[1730206635008,5.99167252,179.69,179.64,2.7845]
[1730206636405,2.7842,179.67,179.64,2.7845]
[1730206640700,5.99167252,179.69,179.63,5.99167252]
[1730206640904,8.77617252,179.65,179.61,2.7849]
[1730206641401,2.7849,179.62,179.59,2.7853]
[1730206641602,5.99167252,179.61,179.56,1.2486]
[1730206641912,5.99167252,179.61,179.55,2.7858]
[1730206641913,2.7854,179.59,179.55,2.7858]
[1730206642516,2.7854,179.59,179.51,2.5987]
[1730206642707,2.7854,179.59,179.54,5.99167252]
[1730206643104,2.7854,179.59,179.56,2.7857]
[1730206643407,2.7854,179.59,179.54,5.99167252]
[1730206644602,2.7854,179.59,179.57,2.7856]
[1730206646412,2.7854,179.59,179.56,2.7857]
[1730206646807,2.7854,179.59,179.55,2.7858]
[1730206647020,2.7854,179.59,179.54,5.99167252]
[1730206647611,2.7854,179.59,179.55,2.7859]
[1730206648014,5.99167252,179.61,179.55,2.7859]
[1730206648216,2.7855,179.58,179.55,2.7859]
[1730206648415,2.7855,179.58,179.54,5.99167252]
[1730206648717,2.7855,179.58,179.56,2.7858]
[1730206649220,2.7854,179.59,179.56,2.7856]
[1730206651212,1.2487,179.65,179.56,5.99167252]
[1730206651417,2.7852,179.6,179.57,8.77727252]
[1730206652007,5.99167252,179.62,179.57,5.99167252]
[1730206652205,1.2487,179.65,179.57,5.99167252]
[1730206652206,1.2487,179.65,179.58,2.7854]
[1730206652411,5.99167252,179.64,179.58,2.7854]
[1730206653117,2.785,179.62,179.58,2.7854]
[1730206657320,5.99167252,179.62,179.57,5.99167252]
[1730206657509,5.99167252,179.62,179.51,2.5987]
[1730206657510,5.99167252,179.6,179.56,2.7856]
[1730206658119,5.99167252,179.6,179.54,5.99167252]
[1730206658316,5.99167252,179.6,179.55,2.7859]
[1730206658717,2.7853,179.59,179.55,2.7859]
[1730206658918,2.7853,179.59,179.54,5.99167252]
[1730206658919,5.99167252,179.58,179.54,2.786]
[1730206659119,5.99167252,179.58,179.53,5.99167252]
[1730206659320,2.7857,179.57,179.51,2.5987]
[1730206659522,2.7857,179.57,179.53,2.7862]
[1730206659817,8.77737252,179.57,179.53,2.7862]
[1730206660418,8.77737252,179.57,179.51,8.59037252]
[1730206660615,8.77737252,179.57,179.54,2.7861]
[1730206661641,2.7857,179.57,179.54,2.7861]
[1730206662333,2.7857,179.57,179.53,2.7861]
[1730206662530,5.99167252,179.57,179.52,5.99167252]
[1730206662732,5.99167252,179.57,179.51,2.5987]
[1730206662931,2.786,179.55,179.52,2.7864]
[1730206663237,5.99167252,179.53,179.48,5.99167252]
[1730206663936,8.77807252,179.53,179.48,5.99167252]
[1730206664134,8.77807252,179.53,179.5,2.7867]
[1730206664538,5.99167252,179.53,179.48,5.99167252]
[1730206664734,8.77797252,179.53,179.48,5.99167252]
[1730206666043,8.77797252,179.53,179.5,2.7867]
[1730206666546,5.99167252,179.57,179.5,5.99167252]
[1730206667137,2.7859,179.56,179.52,2.7863]
[1730206667438,2.7859,179.56,179.5,5.99167252]
[1730206668239,5.99167252,179.57,179.5,5.99167252]
[1730206668439,12.47388908,179.62,179.45,3.717]
[1730206668440,12.47388908,179.62,179.54,2.7861]
[1730206668744,5.99167252,179.59,179.53,5.99167252]
[1730206668941,2.7856,179.58,179.54,2.786]
[1730206671246,5.99167252,179.6,179.55,5.99167252]
[1730206671949,2.7854,179.59,179.55,8.77747252]
[1730206676458,2.7855,179.58,179.55,8.77747252]
[1730206677356,2.7855,179.58,179.55,2.7858]
[1730206679051,2.7858,179.56,179.53,2.7862]
[1730206679251,5.99167252,179.59,179.53,2.7862]
[1730206681057,5.99167252,179.57,179.51,2.7864]
[1730206681565,2.7861,179.55,179.51,2.7864]
[1730206681861,5.99167252,179.56,179.51,2.7864]
[1730206682158,5.99167252,179.56,179.45,3.717]
[1730206682159,5.99167252,179.54,179.45,3.717]
[1730206682359,5.99167252,179.54,179.47,5.99167252]
[1730206682756,2.7865,179.52,179.48,2.787]
[1730206682963,5.99167252,179.5,179.36,5.5777]
[1730206683167,5.99167252,179.5,179.43,5.99167252]
[1730206683364,8.77857252,179.5,179.45,8.77907252]
[1730206683662,8.77857252,179.5,179.45,5.99167252]
[1730206684262,8.77857252,179.5,179.46,2.7873]
[1730206684958,2.7869,179.5,179.46,2.7873]
[1730206685551,8.77857252,179.5,179.46,2.7873]
[1730206687354,2.7872,179.49,179.45,8.77947252]
[1730206687760,5.99167252,179.5,179.45,5.99167252]
[1730206688657,12.40688908,179.56,179.47,5.99167252]
[1730206688859,5.99167252,179.53,179.4,5.577]
[1730206689062,5.99167252,179.51,179.45,5.99167252]
[1730206689364,2.7872,179.49,179.45,5.99167252]
[1730206690156,2.7872,179.49,179.45,8.77937252]
[1730206690959,8.77847252,179.52,179.45,5.99167252]
[1730206691160,5.99167252,179.52,179.47,5.99167252]
[1730206691469,5.99167252,179.52,179.37,3.8069]
[1730206691663,5.99167252,179.49,179.37,3.8069]
[1730206691963,5.99167252,179.49,179.43,5.99167252]
[1730206693265,2.7874,179.48,179.44,2.7879]
[1730206694478,2.7876,179.46,179.42,2.7881]
[1730206695063,5.99167252,179.47,179.42,2.7881]
[1730206695366,5.99167252,179.47,179.41,5.99167252]
[1730206696266,8.77917252,179.47,179.43,2.788]
[1730206696667,2.7875,179.47,179.43,2.788]
[1730206697463,11.07798908,179.53,179.42,5.99167252]
[1730206697665,1.1921,179.53,179.46,5.99167252]
[1730206697871,5.99167252,179.52,179.46,5.99167252]
[1730206698071,1.1921,179.53,179.46,5.99167252]
[1730206698268,5.99167252,179.51,179.46,5.99167252]
[1730206698765,5.99167252,179.51,179.45,5.99167252]
[1730206699369,2.7873,179.49,179.45,8.77947252]
[1730206700773,2.7873,179.48,179.45,5.99167252]
[1730206701670,2.7873,179.48,179.45,8.77947252]
[1730206702568,2.7873,179.48,179.44,2.7879]
[1730206703179,5.99167252,179.46,179.37,3.8069]
[1730206703368,2.7879,179.44,179.4,2.7884]
[1730206703571,5.99167252,179.45,179.37,2.5598]
[1730206703870,5.99167252,179.45,179.38,5.99167252]
[1730206704074,2.7879,179.45,179.41,2.7884]
[1730206704468,5.99167252,179.46,179.41,2.7884]
[1730206704668,9.88588908,179.51,179.4,5.99167252]
[1730206704974,5.99167252,179.47,179.42,2.7881]
[1730206705569,5.99167252,179.46,179.42,2.7881]
[1730206706263,5.99167252,179.46,179.4,5.99167252]
[1730206706264,2.7879,179.45,179.4,5.99167252]
[1730206707174,2.7879,179.45,179.41,2.7883]
[1730206708278,2.7881,179.43,179.4,2.7885]
[1730206708575,5.99167252,179.46,179.4,5.99167252]
[1730206708976,2.788,179.44,179.4,5.99167252]
[1730206709164,5.99167252,179.46,179.4,5.99167252]
[1730206709471,2.7882,179.43,179.39,2.7887]
[1730206709678,5.99167252,179.44,179.38,7.19297252]
[1730206710175,2.7881,179.43,179.39,2.7887]
[1730206711268,2.7886,179.4,179.37,2.789]
[1730206711663,2.74192419,179.47,179.37,5.99167252]
[1730206711865,2.7885,179.41,179.37,8.78057252]
[1730206712279,2.7883,179.42,179.38,2.7888]
[1730206713970,2.7885,179.41,179.38,2.7888]
[1730206714786,1.2248,179.47,179.38,5.99167252]
[1730206714967,1.2248,179.47,179.42,5.99167252]
[1730206715173,5.99167252,179.47,179.42,5.99167252]
[1730206715383,8.77927252,179.47,179.43,2.788]
[1730206715582,5.99167252,179.47,179.43,2.788]
[1730206716081,8.77917252,179.47,179.43,2.788]
[1730206716383,8.77917252,179.47,179.32,3.7048]
[1730206716384,5.99167252,179.47,179.42,2.7882]
[1730206716779,5.99167252,179.47,179.41,5.99167252]
[1730206717382,2.7876,179.46,179.41,8.78007252]
[1730206718179,2.7873,179.48,179.43,2.7881]
[1730206718484,5.99167252,179.49,179.44,5.99167252]
[1730206719086,2.7874,179.48,179.44,5.99167252]
[1730206719287,5.99167252,179.46,179.41,5.99167252]
[1730206719788,8.77927252,179.46,179.41,8.78007252]
[1730206719986,5.99167252,179.46,179.41,8.78007252]
[1730206720176,5.99167252,179.45,179.35,81.04136996]
[1730206720486,2.788,179.44,179.39,8.78027252]
[1730206720686,2.788,179.44,179.39,5.99167252]
[1730206720892,2.788,179.44,179.4,5.99167252]
[1730206721284,2.788,179.44,179.4,8.78017252]
[1730206721983,2.7881,179.43,179.4,8.78017252]
[1730206725194,7.67502273,179.51,179.35,81.04136996]
[1730206725195,7.67502273,179.51,179.42,5.99167252]
[1730206725387,5.99167252,179.48,179.42,5.99167252]